Cogmind - Beta 13 @@@ ROGUE MODE // 2024.06.18 @ 22:35:44 Player: celerysam Result: Destroyed by Y-54 Guardian with Gatling Laser Performance ------------- Evolutions (3) 1500 Regions Visited (4) 800 Robots Destroyed (34) 170 Value Destroyed (947) 947 Prototype IDs (2) 40 Alien Tech Used (0) 0 Bonus (0) 0 TOTAL SCORE: 3457 Bonus ------- None Cogmind --------- Core Integrity 0/700 Matter 251/300 Energy 95/100 System Corruption 2% Temperature Cool (40) Movement Core (50) Location -7/Factory Parts ------- > --- POWER (2) -------- (None) > --- PROPULSION (5) --- (None) > --- UTILITY (4) ------ Advanced Visual Processing Unit Advanced Targeting Computer > --- WEAPON (2) ------- Particle Gun > --- INVENTORY (5) ---- Light Nuclear Core Peak State ------------ > --- POWER ------------ Deuterium Engine > --- PROPULSION ------- Armored Wheel Flight Unit Flight Unit Flight Unit Cesium-ion Thruster > --- UTILITY ---------- Advanced Visual Processing Unit Seismic Detector Advanced Targeting Computer Reaction Control System > --- WEAPON ----------- Lightning Gun Beam Rifle > --- INVENTORY -------- Deuterium Engine Advanced Treads Gravmag System Cooling System Great Maul [Rating: 28] Favorites ----------- Power Ion Engine Engine Ion Engine Power Core Light Nuclear Core Propulsion Flight Unit Treads Light Treads Leg Aluminum Leg Wheel Wheel Hover Unit Airjet Flight Unit Flight Unit Utility Small Storage Unit Device Terrain Scanner Storage Small Storage Unit Processor Advanced Targeting Computer Hackware System Shield Weapon Light Assault Rifle Energy Gun Beam Rifle Energy Cannon Beam Cannon Ballistic Gun Light Assault Rifle Ballistic Cannon Improved Light Cannon Impact Weapon Great Maul Slashing Weapon Mining Claw Build | -11 -10 -9 -8 -7 ------- Run | Yrd Mat Mat Mat Fac Slots Evolved 6 | . . 2 2 2 Power 1 | . . . 1 . Propulsion 3 | . . 2 . 1 Utility 2 | . . . 1 1 Weapon . | . . . . . Parts Attached 78 | 8 17 17 26 10 Power 9 | 1 4 1 2 1 Engine 8 | 1 3 1 2 1 Core 1 | . 1 . . . Reactor . | . . . . . Propulsion 35 | 4 5 13 10 3 Treads 4 | . 3 . . 1 Leg 8 | 2 2 3 1 . Wheel 5 | 2 . . 1 2 Hover 1 | . . . 1 . Flight 17 | . . 10 7 . Utility 13 | 1 2 1 7 2 Device 6 | . 1 . 3 2 Storage 4 | 1 1 1 1 . Processor 2 | . . . 2 . Hackware 1 | . . . 1 . Protection . | . . . . . Artifact . | . . . . . Weapon 21 | 2 6 2 7 4 Energy Gun 4 | . 1 . 1 2 Energy Cannon 1 | . 1 . . . Ballistic Gun 7 | 2 1 1 2 1 Ballistic Cannon 4 | . . 1 3 . Launcher . | . . . . . Special Weapon . | . . . . . Impact Weapon 2 | . . . 1 1 Slashing Weapon 3 | . 3 . . . Piercing Weapon . | . . . . . Special Melee Weapon . | . . . . . Unidentified Prototypes . | . . . . . Corrupted Parts 1 | . . . 1 . System Corruption 6 | . . . 6 . Parts Lost 46 | . 6 8 18 14 Power 7 | . 2 1 2 2 Propulsion 19 | . 1 5 7 6 Utility 8 | . . . 5 3 Weapon 12 | . 3 2 4 3 Highest Loss Streak 14 | . 3 8 10 14 To Critical Strikes . | . . . . . Average Slot Usage (%) 74 | . 88 92 56 65 Engine 6 | . 7 7 5 5 Treads 4 | . 12 . . 1 Leg 3 | . 5 9 1 . Wheel 3 | . 7 . 2 4 Flight 14 | . . 33 19 18 Device 9 | . 12 11 4 11 Storage 8 | . 14 11 6 . Processor 3 | . . . 3 15 Energy Gun 2 | . 2 . 2 4 Energy Cannon 2 | . 4 6 . . Ballistic Gun 6 | . 11 3 4 . Slashing Weapon 3 | . 6 7 . . Naked Turns . | . . . . . Heaviest Build 21 | 13 21 16 13 18 Greatest Support 40 | 20 40 30 17 22 Greatest Overweight (x) 4 | . 4 1 3 2 Average Overweight (x) . | . . . . . Largest Inventory Capacity 10 | 8 10 10 8 5 Average Capacity 7 | 6 8 8 6 5 Most Carried 8 | 6 8 8 8 5 Average Carried 5 | 4 7 5 5 3 Final Capacity 10 | 8 10 8 5 5 Final Carried 8 | 6 8 5 5 1 Class Distribution -------------------- 77% | Mutant 16% | Scavenger-Mutant 5% | Sprinter Dominant Class ---------------- Mutant | -10/Materials Mutant | -9/Materials Mutant | -8/Materials Mutant | -7/Factory Resources | -11 -10 -9 -8 -7 ----------- Run | Yrd Mat Mat Mat Fac Matter Collected 892 | 183 175 150 314 70 Remotely . | . . . . . Salvage Created 1020 | . 204 145 463 208 Parts 49 | . 15 10 18 6 Haulers Intercepted . | . . . . . Recyclers Shooed 1 | . 1 . . . Parts Field Recycled . | . . . . . Retrieved Matter . | . . . . . Parts Self-Destructed . | . . . . . Prevented . | . . . . . Kills | -11 -10 -9 -8 -7 ------- Run | Yrd Mat Mat Mat Fac Combat Hostiles Destroyed 32 | . 6 6 16 4 Melee 8 | . 2 . 4 2 Guns 7 | . 4 . 2 1 Cannons 14 | . . 6 8 . Classes Destroyed 7 | . 2 1 2 2 Worker 1 | . . . 1 . Recycler 1 | . . . 1 . Swarmer 14 | . 1 4 9 . Grunt 12 | . 5 . 5 2 Duelist 1 | . . . . 1 Sentry 4 | . . 2 2 . Hunter 1 | . . . . 1 Best Kill Streak 7 | . 3 3 7 3 Combat Bots Only 6 | . 3 3 6 3 Max Kills in Single Turn 1 | . 1 1 1 1 Gunslinging . | . . . . . Exploded . | . . . . . Melee 1 | . 1 . 1 1 Uniques/NPCs Destroyed . | . . . . . Combat | -11 -10 -9 -8 -7 -------- Run | Yrd Mat Mat Mat Fac Hostile Shots Fired 610 | . 122 85 176 227 Missed 175 | . 32 25 49 69 Damage Taken 4705 | . 1017 525 1532 1631 Core 1599 | . 227 134 538 700 Absorbed by Shields . | . . . . . Core Remaining (%) 44 | 100 9 66 2 . Volleys Fired 89 | . 30 20 24 15 Largest 2 | . 2 2 2 1 Hottest 65 | . 60 60 59 65 Shots Fired 107 | . 40 25 27 15 Gun 68 | . 38 5 10 15 Cannon 39 | . 2 20 17 . Launcher . | . . . . . Special . | . . . . . Kinetic 72 | . 29 10 27 6 Thermal 30 | . 11 15 . 4 Explosive . | . . . . . Electromagnetic 5 | . . . . 5 Robot Hit Streak 17 | . 5 5 11 17 Robot Miss Streak 6 | . 6 6 1 . Penetration Max . | . . . . . Secondary Targets . | . . . . . Shots Hit Robots 105 | . 30 13 40 22 Core Hits 46 | . 14 8 16 8 Critical Kills 4 | . . . 2 2 Critical Parts Destroyed 4 | . . . 3 1 Critical Strikes 8 | . . . 5 3 Destroy 1 | . . . . 1 Smash 7 | . . . 5 2 Melee Attacks 51 | . 12 6 24 9 Impact 33 | . . . 24 9 Slashing 18 | . 12 6 . . Piercing . | . . . . . Sneak Attacks 1 | . . . 1 . Combat Hostiles . | . . . . . Follow-up Attacks . | . . . . . Damage Inflicted 2491 | . 455 228 1267 541 Guns 571 | . 261 16 59 235 Cannons 573 | . . 185 388 . Explosions . | . . . . . Melee 1335 | . 189 24 820 302 Ramming 12 | . 5 3 . 4 Kinetic 801 | . 187 79 447 88 Thermal 258 | . 74 122 . 62 Explosive . | . . . . . Electromagnetic 85 | . . . . 85 Impact 1122 | . . . 820 302 Slashing 213 | . 189 24 . . Piercing . | . . . . . Highest Corruption 6 | . . . 6 2 Average Corruption 4 | . . . 6 2 Corruption Purged . | . . . . . Corruption Blocked . | . . . . . Effects 3 | . . . 2 1 Matter Fused 1 | . . . 1 . Heat Flow Errors 1 | . . . . 1 Data Loss (minor) 1 | . . . 1 . Overload Shots . | . . . . . Overflow Damage 307 | . . . 231 76 Projectiles 48 | . . . 48 . Explosions . | . . . . . Melee 259 | . . . 183 76 Knockbacks 5 | . . . 5 . Impact 2 | . . . 2 . Kinetic 1 | . . . 1 . Secondary 2 | . . . 2 . Self-Inflicted Damage 4 | . 2 . . 2 Shots . | . . . . . Rammed 4 | . 2 . 1 1 Targets Rammed 5 | . 2 1 1 1 Kicked 1 | . . 1 . . Crushed . | . . . . . Highest Temperature 226 | . 15 112 41 226 Average Temperature 34 | . 6 41 15 59 Received Heat Transfer 1581 | . 501 45 558 477 Siege Activations . | . . . . . Robots Corrupted . | . . . . . Combat Hostiles . | . . . . . Parts Fried 8 | . . . 3 5 Impact Corruptions 14 | . . . 10 4 Robots Melted . | . . . . . Combat Hostiles . | . . . . . Parts Melted . | . . . . . Heat Transferred 582 | . 175 259 . 148 Parts Sabotaged . | . . . . . Parts Stolen . | . . . . . Parts Stripped . | . . . . . Power Chain Reactions . | . . . . . Alert | -11 -10 -9 -8 -7 ------- Run | Yrd Mat Mat Mat Fac Peak Influence 278 | . 120 210 278 216 Initial 126 | . . 50 88 126 Average 118 | . 79 127 156 159 Maximum Alert Level 1 | . . 1 1 1 Low Security (%) 87 | 100 100 99 64 92 Level 1 12 | . . . 35 7 Level 2 . | . . . . . Level 3 . | . . . . . Level 4 . | . . . . . Level 5 . | . . . . . High Security . | . . . . . Max Security . | . . . . . Squads Dispatched 3 | . 1 . 1 1 Investigation 1 | . . . 1 . Extermination . | . . . . . Reinforcement 2 | . 1 . . 1 Assault . | . . . . . Garrison . | . . . . . Intercept . | . . . . . Searches Triggered . | . . . . . Construction Impeded . | . . . . . Haulers Reinforced . | . . . . . Active Scanning Responses . | . . . . . Cargo Convoy Interrupts . | . . . . . Stealth | -11 -10 -9 -8 -7 --------- Run | Yrd Mat Mat Mat Fac Distress Signals 4 | . 2 2 . . Communications Jammed . | . . . . . Distress Signals . | . . . . . Times Spotted 61 | . 16 10 23 12 Peak Tracking Total 11 | . 9 6 8 11 Tactical Retreats 6 | . 1 . 4 1 Traps | -11 -10 -9 -8 -7 ------- Run | Yrd Mat Mat Mat Fac Traps Triggered 3 | . 2 . . 1 Indirectly . | . . . . . Trap Hack Attempts . | . . . . . Triggered . | . . . . . Disarmed . | . . . . . Reprogrammed . | . . . . . Reused . | . . . . . Traps Extracted . | . . . . . Installed . | . . . . . Triggered . | . . . . . Machines | -11 -10 -9 -8 -7 ---------- Run | Yrd Mat Mat Mat Fac Machines Disabled . | . . . . . Max in Single Turn . | . . . . . Machines Repaired . | . . . . . Machines Dismantled . | . . . . . Machines Sabotaged . | . . . . . Overloaded Fab Kills . | . . . . . Hacking | -11 -10 -9 -8 -7 --------- Run | Yrd Mat Mat Mat Fac Machines Accessed 4 | . 1 . 3 . Terminals 4 | . 1 . 3 . Fabricators . | . . . . . Repair Stations . | . . . . . Recycling Units . | . . . . . Scanalyzers . | . . . . . Garrison Access . | . . . . . Total Hacks 8 | . 1 . 7 . Successful 4 | . 1 . 3 . Failed 4 | . . . 4 . Catastrophic 2 | . . . 2 . Database Lockouts . | . . . . . Manual . | . . . . . Terminals 8 | . 1 . 7 . Fabricators . | . . . . . Repair Stations . | . . . . . Recycling Units . | . . . . . Scanalyzers . | . . . . . Garrison Access . | . . . . . Terminal Hacks 4 | . 1 . 3 . Prototype ID Bank 1 | . 1 . . . Alert Level 2 | . . . 2 . Unreport Threat 1 | . . . 1 . Fabricator Hacks . | . . . . . Repair Station Hacks . | . . . . . Recycling Unit Hacks . | . . . . . Scanalyzer . | . . . . . Garrison Access Hacks . | . . . . . Unauthorized Hacks . | . . . . . Terminals . | . . . . . Fabricators . | . . . . . Repair Stations . | . . . . . Recycling Units . | . . . . . Scanalyzers . | . . . . . Garrison Access . | . . . . . Data Cores Recovered . | . . . . . Used . | . . . . . Hacking Detections 4 | . 1 . 3 . Full Trace Events 1 | . . . 1 . Feedback Events . | . . . . . Feedback Blocked . | . . . . . Robot Schematics Acquired . | . . . . . Robots Built . | . . . . . Authchips . | . . . . . Time . | . . . . . Total Robot Build Rating . | . . . . . Part Schematics Acquired . | . . . . . Parts Built . | . . . . . Authchips . | . . . . . Time . | . . . . . Total Part Build Rating . | . . . . . Parts Repaired . | . . . . . Time . | . . . . . Parts Recycled . | . . . . . Recycled Matter . | . . . . . Retrieved Matter . | . . . . . Retrieved Components . | . . . . . Parts Scanalyzed . | . . . . . Part Schematics Acquired . | . . . . . Parts Damaged . | . . . . . Bothacking | -11 -10 -9 -8 -7 ------------ Run | Yrd Mat Mat Mat Fac Used RIF Installer . | . . . . . Robots Hacked . | . . . . . Non-combat . | . . . . . Combat . | . . . . . Robot Hacks Applied . | . . . . . Relay Couplers Released . | . . . . . Fabnet Peak Effective % . | . . . . . Robots Rewired . | . . . . . Allies Hacked . | . . . . . Hacks Repelled . | . . . . . Allies | -11 -10 -9 -8 -7 -------- Run | Yrd Mat Mat Mat Fac Total Allies . | . . . . . Largest Group . | . . . . . Highest-Rated Group . | . . . . . Highest-Rated Ally . | . . . . . Total Orders . | . . . . . Ally Attacks . | . . . . . Total Damage . | . . . . . Kills . | . . . . . Allies Corrupted . | . . . . . Allies Melted . | . . . . . Intel | -11 -10 -9 -8 -7 ------- Run | Yrd Mat Mat Mat Fac Robot Analysis Total . | . . . . . Derelict Logs Recovered . | . . . . . Drone Launches . | . . . . . Drone Recoveries . | . . . . . Exploration | -11 -10 -9 -8 -7 ------------- Run | Yrd Mat Mat Mat Fac Turns Passed 1113 | 70 360 170 348 165 Spaces Moved 1041 | 59 168 189 385 240 Core 19 | 9 2 . 3 5 Treads 57 | . 54 . . 3 Legs 63 | 14 35 14 . . Wheels 131 | 36 77 . 18 . Hover . | . . . . . Flight 771 | . . 175 364 232 Fastest Speed 29 | 50 80 29 29 34 Average Speed 57 | 84 129 39 43 37 Slowest Speed 250 | 120 250 120 210 150 Overloaded Moves . | . . . . . Propulsion Burnouts . | . . . . . Robots Hopped 3 | . . . 3 . Cave-ins Triggered . | . . . . . Exploration Rate (%) 19 | 4 35 18 29 10 Regions Visited 4 Branch Regions . Pre-discovered Areas . | . . . . . Known Exits Taken . | . . . . . Unknown Exits Taken 4 | 1 1 1 1 . Scrap Searched . | . . . . . Spaces Dug . | . . . . . Terrain Destroyed . | . . . . . Melee . | . . . . . Projectile . | . . . . . AOE . | . . . . . Terrain Rammed . | . . . . . Walls Destroyed . | . . . . . Machines Disabled . | . . . . . Actions | -11 -10 -9 -8 -7 --------- Run | Yrd Mat Mat Mat Fac Total 1339 | 76 246 244 489 284 Wait 5 | . 5 . . . Move 1031 | 58 167 188 378 240 Hop 3 | . . . 3 . Pick Up 54 | 10 8 8 22 6 Fast Attach 18 | 2 10 1 4 1 Attach 44 | 4 3 9 20 8 Detach 4 | . . 1 3 . Swap 16 | 2 4 7 2 1 Drop 19 | . 5 3 8 3 Fire 89 | . 30 20 24 15 Melee 51 | . 12 6 24 9 Ram 4 | . 2 . 1 1 Kick 1 | . . 1 . . Crush . | . . . . . Escape Stasis . | . . . . . Rewire . | . . . . . Trap . | . . . . . Miscellaneous . | . . . . . Route ------- -11/Scrapyard -10/Materials -9/Materials -8/Materials -7/Factory History --------- Turn | Location | Event 46 | -11/Scrapyard | Discovered new exit (range 15) 71 | -11/Scrapyard | Entered Materials 185 | -10/Materials | Core integrity fell below 50% 222 | -10/Materials | Lost 3 parts (1p2w) 278 | -10/Materials | Core integrity fell below 20% 300 | -10/Materials | Build established: Mutant 425 | -10/Materials | Discovered new exit (range 3) 431 | -10/Materials | Entered another Materials area 431 | -9/Materials | Evolved 2 slots: Propulsion x2 576 | -9/Materials | Lost 8 parts (1p5n2w) 599 | -9/Materials | Discovered new exit (range 4) 601 | -9/Materials | Entered another Materials area 601 | -8/Materials | Evolved 2 slots: Power x1, Utility x1 696 | -8/Materials | Core integrity fell below 50% 711 | -8/Materials | Lost 10 parts (1p5n2u2w) 814 | -8/Materials | Core integrity fell below 20% 847 | -8/Materials | Lost 8 parts (1p2n3u2w) 912 | -8/Materials | Discovered new exit (range 20) 949 | -8/Materials | Entered Factory 949 | -7/Factory | Evolved 2 slots: Propulsion x1, Utility x1 1085 | -7/Factory | Core integrity fell below 50% 1105 | -7/Factory | Core integrity fell below 20% 1114 | -7/Factory | Destroyed by Y-54 Guardian with Gatling Laser Last Messages --------------- 01075_ Penetrated by Slug. 01082_ Seismic Detector destroyed. 01085_ Great Maul destroyed. 01087_ Penetrated by Slug. 01090_ Slug penetrates Assembly Bed. 01092_ Slug penetrates H-55 Commando. 01093_ Slug penetrates Assembly Bed. 01093_ Assembly Bed disabled. 01094_ Slug penetrates H-55 Commando. 01096_ Penetrated by Slug. 01096_ Cooling System destroyed. 01096_ Slug penetrates H-55 Commando. 01098_ H-55 Commando suffers critical hit (Destroy). 01098_ H-55 Commando destroyed. 01100_ Slug penetrates Y-54 Guardian. 01101_ Gauss Rifle destroyed. 01104_ Acquired Particle Gun. 01106_ Deuterium Engine destroyed. 01108_ Acquired Lgt. Nuclear Core. 01114_ Y-54 Guardian heat damages Imp. Light Armor Plating. Map ----- +----------------------------------------------------+ | ?????????????????????????????????????????????# | | ?????????????????????????????????????????????# | | ??????????????????????????????????????######## | | ??????????????????????????? ???????? | | ??????????????????????????? ??????? | | ??????????????????????????? ??????? | | ??????????????????????????? ??????? | | ??????????????????????????? ??????? | | ???????????????????????????# ???????? | | ???????????????????????????# ????????? | | ???????????????????????????# #??????????####### | | ???????????????????????????# #????????????????# | | ???????????????????????????# #????????????????# | | ???????????????????????????# ###############??# | | ???????????????????????????# T# #??# | | ???????????????????????????# # " " " " " #??# | | ???????????????????????????# ## " " " " " #### | | ??????????????????????????## ## " " " " " + | | ??????????????????????????# # " " " " " ## | | ??????????????????????????# # " " " " " ## | | ??????????????????????????# + " " " " " ## | | ??????????????????????????# # " " " " " ## | | ??????????????????????????# # " " " " " ## | | ???????????????############# ## " " " " " + | | ???????????????# ! !%! # ## ## | | ???????????????# =% @Y# ## ## | | ???????????????# """"" *g% ################ | | ???????????????# """""" # #??????????????# | | ???????????????# """""" # #??????????????# | | ???????????????#! """""" # #??????????????# | | ???????????????# # #??????????????# | | ???????????????############# #??????????????# | | ???????????????????????????# #?????????????? | | ??????????????????????????? ?????????????? | | ??????????????????????????? #????????????? | | ??????????????????????????? ????????????? | | ??????????????????????????# ##???????????? | | ??????????????????????????# #????????????????? | | ??????????????????????????#######????????????????? | | ?????????????????????????????????????????????????? | | ?????????????????????????????????????????????????? | | ?????????????????????????????????????????????????? | | ?????????????????????????????????????????????????? | | ?????????????????????????????????????????????????? | | ?????????????????????????????????????????????????? | | ?????????????????????????????????????????????????? | | ?????????????????????????????????????????????????? | | ?????????????????????????????????????????????????? | | ?????????????????????????????????????????????????? | | ?????????????????????????????????????????????????? | +----------------------------------------------------+ Best States ------------- Heat Dissipation 56 Energy Generation 14 Energy Capacity 275 Matter Stores 300 Matter Capacity 300 Sight Range 20 Robot Scan Range 15 Terrain Scan Range 14 Terrain Scan Density 10 Evasion (%) 72 Targeting Accuracy 8 Recoil Reduction 2 Defensive Hacking 10 Item Schematics ----------------- None Robot Schematics ------------------ None Fabricated ------------ Nothing Alien Tech Used ----------------- None Achievements -------------- None Challenges ------------ None Game ------ Seed SpacefoldLargePurifier Manual? 0 Play Time 00:28:56 Cumulative 51.8 hours Start 2024.06.18 @ 21:51:26 End 2024.06.18 @ 22:35:44 Sessions 1 Manual Loads 0 Difficulty Rogue Special Mode None Game No. 79 Rogue 79 Adventurer 0 Explorer 0 Win Type - Total 0 Types 0/0/0/0/0/0/0/0/0 Lore% 25 Gallery% 41 Achievement% 28 Wizard Run 0 Options --------- Layout 0 ASCII 0 Keyboard 0 Movement Mouse Keybinds 0 Fullscreen 1 Font 24/Smallcaps Map View 76x50 Zoom Use 0% Tactical HUD 1 Map Filters NONE Filters NONE Steam 1 RUN: 76af5ae5-5d2f-45a6-9f50-096b19f2c171